[Event "Live Chess"]
[Site "Chess.com"]
[Date "2023.05.21"]
[Round "-"]
[White "AbilifyXL"]
[Black "Ferrarifan27"]
[Result "1/2-1/2"]
[WhiteElo "1968"]
[BlackElo "2055"]
[TimeControl "300"]
[EndTime "7:04:17 PDT"]
[Termination "Game drawn by stalemate"]

1. d4 {[%clk 0:04:57.4]} 1... Nf6 {[%clk 0:04:58.7]} 2. c4 {[%clk 0:04:51.7]}
2... e6 {[%clk 0:04:57.5]} 3. Nf3 {[%clk 0:04:49.7]} 3... b6 {[%clk 0:04:55.6]}
4. a3 {[%clk 0:04:45]} 4... Bb7 {[%clk 0:04:52.6]} 5. Nc3 {[%clk 0:04:44.2]}
5... Be7 {[%clk 0:04:51]} 6. Bg5 {[%clk 0:04:34.1]} 6... O-O {[%clk 0:04:48.8]}
7. e3 {[%clk 0:04:33.3]} 7... d6 {[%clk 0:04:44.7]} 8. Be2 {[%clk 0:04:31.2]}
8... Nbd7 {[%clk 0:04:41.9]} 9. O-O {[%clk 0:04:30]} 9... h6 {[%clk 0:04:40.9]}
10. Bh4 {[%clk 0:04:29]} 10... Ne4 {[%clk 0:04:38.2]} 11. Bxe7 {[%clk
0:04:25.5]} 11... Qxe7 {[%clk 0:04:38.1]} 12. Rc1 {[%clk 0:04:23]} 12... f5
{[%clk 0:04:34]} 13. Nxe4 {[%clk 0:04:17.7]} 13... fxe4 {[%clk 0:04:31]} 14. Nd2
{[%clk 0:04:16.7]} 14... Qf6 {[%clk 0:04:29.2]} 15. Bg4 {[%clk 0:04:14.6]} 15...
e5 {[%clk 0:04:22.3]} 16. Bxd7 {[%clk 0:04:13.2]} 16... exd4 {[%clk 0:04:19.9]}
17. exd4 {[%clk 0:04:04.2]} 17... Qxd4 {[%clk 0:04:18.8]} 18. Be6+ {[%clk
0:03:54.2]} 18... Kh8 {[%clk 0:04:16.8]} 19. Bd5 {[%clk 0:03:52.7]} 19... Bxd5
{[%clk 0:04:13.8]} 20. cxd5 {[%clk 0:03:51.4]} 20... Qxd5 {[%clk 0:04:12.8]} 21.
Rxc7 {[%clk 0:03:44.6]} 21... Qf5 {[%clk 0:04:11.7]} 22. Nc4 {[%clk 0:03:34.8]}
22... d5 {[%clk 0:04:07.8]} 23. Ne3 {[%clk 0:03:27.9]} 23... Qe5 {[%clk
0:04:06.2]} 24. Rd7 {[%clk 0:03:22.6]} 24... Rfd8 {[%clk 0:03:54.8]} 25. Rxd5
{[%clk 0:03:16.7]} 25... Rxd5 {[%clk 0:03:50.9]} 26. Qxd5 {[%clk 0:03:15.6]}
26... Qxd5 {[%clk 0:03:45.9]} 27. Nxd5 {[%clk 0:03:14.5]} 27... Rd8 {[%clk
0:03:45.4]} 28. Ne3 {[%clk 0:03:10]} 28... Rd2 {[%clk 0:03:43.6]} 29. Rb1 {[%clk
0:03:05]} 29... b5 {[%clk 0:03:40.3]} 30. g4 {[%clk 0:03:03.7]} 30... Kh7 {[%clk
0:03:38.2]} 31. Kg2 {[%clk 0:03:02.8]} 31... Kg6 {[%clk 0:03:36.5]} 32. Kg3
{[%clk 0:03:01.8]} 32... Kf6 {[%clk 0:03:31.4]} 33. h4 {[%clk 0:02:56.8]} 33...
g5 {[%clk 0:03:28]} 34. hxg5+ {[%clk 0:02:54.6]} 34... hxg5 {[%clk 0:03:27.9]}
35. b3 {[%clk 0:02:50.3]} 35... Rd3 {[%clk 0:03:24.3]} 36. a4 {[%clk 0:02:47.7]}
36... bxa4 {[%clk 0:03:19.9]} 37. bxa4 {[%clk 0:02:46.9]} 37... Ra3 {[%clk
0:03:19.2]} 38. Rb4 {[%clk 0:02:45.6]} 38... Ke5 {[%clk 0:03:17.5]} 39. Rb5+
{[%clk 0:02:44.2]} 39... Kd4 {[%clk 0:03:14.1]} 40. Ra5 {[%clk 0:02:39.2]} 40...
a6 {[%clk 0:03:05.9]} 41. Rxa6 {[%clk 0:02:37.7]} 41... Kc3 {[%clk 0:03:05.5]}
42. a5 {[%clk 0:02:34.2]} 42... Kd2 {[%clk 0:03:04.5]} 43. Rd6+ {[%clk 0:02:30]}
43... Ke2 {[%clk 0:03:03.4]} 44. a6 {[%clk 0:02:24.7]} 44... Ke1 {[%clk
0:03:00.3]} 45. Kg2 {[%clk 0:02:10.1]} 45... Ra2 {[%clk 0:02:52.6]} 46. Rf6
{[%clk 0:01:51.9]} 46... Rxf2+ {[%clk 0:02:37.6]} 47. Rxf2 {[%clk 0:01:23.7]}
1/2-1/2

[Event "Live Chess"]
[Site "Chess.com"]
[Date "2023.05.21"]
[Round "-"]
[White "davigator"]
[Black "Missedidea"]
[Result "1-0"]
[WhiteElo "2303"]
[BlackElo "1768"]
[TimeControl "300"]
[EndTime "7:04:18 PDT"]
[Termination "davigator won on time"]

1. e4 {[%clk 0:04:59.1]} 1... c5 {[%clk 0:04:58.3]} 2. Nf3 {[%clk 0:04:57.5]}
2... d6 {[%clk 0:04:57.3]} 3. d4 {[%clk 0:04:55.9]} 3... cxd4 {[%clk 0:04:55.8]}
4. Nxd4 {[%clk 0:04:55.6]} 4... Nf6 {[%clk 0:04:54.9]} 5. Nc3 {[%clk 0:04:55]}
5... g6 {[%clk 0:04:54]} 6. Be3 {[%clk 0:04:51.7]} 6... Bg7 {[%clk 0:04:53.1]}
7. f3 {[%clk 0:04:51]} 7... O-O {[%clk 0:04:51.9]} 8. Qd2 {[%clk 0:04:50.4]}
8... Nc6 {[%clk 0:04:50.9]} 9. Bc4 {[%clk 0:04:49.7]} 9... Bd7 {[%clk
0:04:49.8]} 10. O-O-O {[%clk 0:04:47.6]} 10... Rc8 {[%clk 0:04:48.6]} 11. Bb3
{[%clk 0:04:45.2]} 11... Ne5 {[%clk 0:04:44.2]} 12. Rhe1 {[%clk 0:04:44.5]}
12... Nc4 {[%clk 0:04:41.7]} 13. Bxc4 {[%clk 0:04:43.1]} 13... Rxc4 {[%clk
0:04:39.8]} 14. Kb1 {[%clk 0:04:39.8]} 14... a6 {[%clk 0:04:35.8]} 15. Nde2
{[%clk 0:04:33.6]} 15... b5 {[%clk 0:04:31.7]} 16. b3 {[%clk 0:04:31.9]} 16...
Rc8 {[%clk 0:04:27.5]} 17. g4 {[%clk 0:04:25.6]} 17... Be6 {[%clk 0:04:16.9]}
18. Nd5 {[%clk 0:04:22.4]} 18... Bxd5 {[%clk 0:04:08.2]} 19. exd5 {[%clk
0:04:21.6]} 19... Nd7 {[%clk 0:04:03.4]} 20. Bd4 {[%clk 0:04:20.7]} 20... Ne5
{[%clk 0:04:01.6]} 21. Rf1 {[%clk 0:04:18.4]} 21... Qc7 {[%clk 0:03:56.1]} 22.
Rf2 {[%clk 0:04:15.3]} 22... Bh6 {[%clk 0:03:34.9]} 23. Qc3 {[%clk 0:04:00.3]}
23... Qb7 {[%clk 0:03:19.6]} 24. Qb2 {[%clk 0:03:53.9]} 24... Qxd5 {[%clk
0:03:16.5]} 25. Rff1 {[%clk 0:03:43.2]} 25... Nxf3 {[%clk 0:03:12.2]} 26. Be3
{[%clk 0:03:38.9]} 26... Qe4 {[%clk 0:03:07.4]} 27. Bxh6 {[%clk 0:03:36.9]}
27... Ne5 {[%clk 0:02:51.3]} 28. Ng3 {[%clk 0:03:34.1]} 28... Qxg4 {[%clk
0:02:45.7]} 29. Bxf8 {[%clk 0:03:33.2]} 29... Kxf8 {[%clk 0:02:43.1]} 30. Qd4
{[%clk 0:03:27.6]} 30... Qxd4 {[%clk 0:02:38.6]} 31. Rxd4 {[%clk 0:03:25.7]}
31... h5 {[%clk 0:02:31.5]} 32. Ne4 {[%clk 0:03:22.5]} 32... Kg7 {[%clk
0:02:27.3]} 33. Kb2 {[%clk 0:03:18.6]} 33... f5 {[%clk 0:02:20.2]} 34. Nxd6
{[%clk 0:03:17.3]} 34... exd6 {[%clk 0:02:17.8]} 35. Rxd6 {[%clk 0:03:17]} 35...
Rc6 {[%clk 0:02:13.5]} 36. Rd5 {[%clk 0:03:13.5]} 36... Kf6 {[%clk 0:02:11.6]}
37. h3 {[%clk 0:03:11.1]} 37... Nf7 {[%clk 0:02:06.2]} 38. Rg1 {[%clk
0:03:05.3]} 38... Nd6 {[%clk 0:02:03.6]} 39. Rg3 {[%clk 0:02:51.1]} 39... Ne4
{[%clk 0:02:01.9]} 40. Rgd3 {[%clk 0:02:50]} 40... Kg5 {[%clk 0:01:56.3]} 41.
Re3 {[%clk 0:02:37.6]} 41... Kf4 {[%clk 0:01:54.7]} 42. Rdd3 {[%clk 0:02:35.6]}
42... h4 {[%clk 0:01:47]} 43. Rf3+ {[%clk 0:02:32.9]} 43... Ke5 {[%clk
0:01:43.7]} 44. c3 {[%clk 0:02:29.7]} 44... g5 {[%clk 0:01:34.6]} 45. Rd8 {[%clk
0:02:27.1]} 45... g4 {[%clk 0:01:31]} 46. Re8+ {[%clk 0:02:24]} 46... Kf6 {[%clk
0:01:20.1]} 47. hxg4 {[%clk 0:02:21.2]} 47... Nd6 {[%clk 0:01:08.5]} 48. Re1
{[%clk 0:02:10.6]} 48... Kg5 {[%clk 0:01:05.6]} 49. gxf5 {[%clk 0:02:09.8]}
49... Nxf5 {[%clk 0:01:03.3]} 50. Rg1+ {[%clk 0:02:08.8]} 50... Ng3 {[%clk
0:01:01.3]} 51. Rf8 {[%clk 0:02:06.1]} 51... Re6 {[%clk 0:00:56.9]} 52. a4
{[%clk 0:02:03.5]} 52... Re2+ {[%clk 0:00:54]} 53. Ka3 {[%clk 0:02:02.1]} 53...
Rc2 {[%clk 0:00:51]} 54. axb5 {[%clk 0:01:58.3]} 54... axb5 {[%clk 0:00:48.7]}
55. Kb4 {[%clk 0:01:57.5]} 55... Kg4 {[%clk 0:00:44.4]} 56. Rg8+ {[%clk
0:01:54.6]} 56... Kf3 {[%clk 0:00:39.6]} 57. Rh8 {[%clk 0:01:52.8]} 57... Kg4
{[%clk 0:00:37]} 58. Rc8 {[%clk 0:01:45.3]} 58... Rb2 {[%clk 0:00:32.3]} 59.
Rg8+ {[%clk 0:01:38]} 59... Kf3 {[%clk 0:00:30]} 60. Rg5 {[%clk 0:01:35.9]}
60... Kf2 {[%clk 0:00:27.4]} 61. Ra1 {[%clk 0:01:33]} 61... Ne4 {[%clk
0:00:21.7]} 62. Rxb5 {[%clk 0:01:30.2]} 62... Nd2 {[%clk 0:00:18.2]} 63. Ka3
{[%clk 0:01:26]} 63... Rc2 {[%clk 0:00:14.1]} 64. c4 {[%clk 0:01:23.4]} 64... h3
{[%clk 0:00:12]} 65. Rh5 {[%clk 0:01:20]} 65... Kg2 {[%clk 0:00:06.4]} 66. Rg5+
{[%clk 0:01:18.3]} 66... Kf3 {[%clk 0:00:02.3]} 67. Rh1 {[%clk 0:01:16.4]} 1-0

[Event "Live Chess"]
[Site "Chess.com"]
[Date "2023.05.21"]
[Round "-"]
[White "kevinmilleruk"]
[Black "McSlash1"]
[Result "0-1"]
[WhiteElo "1150"]
[BlackElo "2007"]
[TimeControl "300"]
[EndTime "7:04:20 PDT"]
[Termination "McSlash1 won by resignation"]

1. c4 {[%clk 0:04:59.3]} 1... e5 {[%clk 0:04:59.2]} 2. Nc3 {[%clk 0:04:57.2]}
2... Nc6 {[%clk 0:04:59.1]} 3. g3 {[%clk 0:04:43.5]} 3... Nf6 {[%clk 0:04:56.9]}
4. Bg2 {[%clk 0:04:42.5]} 4... Bc5 {[%clk 0:04:54.2]} 5. d3 {[%clk 0:04:40.6]}
5... O-O {[%clk 0:04:51.9]} 6. Bg5 {[%clk 0:04:39.9]} 6... d6 {[%clk 0:04:51.3]}
7. Nd5 {[%clk 0:04:37.8]} 7... Bxf2+ {[%clk 0:04:47.1]} 8. Kxf2 {[%clk
0:04:35.9]} 8... Ng4+ {[%clk 0:04:46.7]} 9. Ke1 {[%clk 0:04:31]} 9... Qxg5
{[%clk 0:04:46.3]} 10. h4 {[%clk 0:04:28.2]} 10... Qf5 {[%clk 0:04:41.9]} 11. b4
{[%clk 0:04:08.4]} 11... Qf2+ {[%clk 0:04:37.5]} 12. Kd2 {[%clk 0:04:05.6]}
12... Qxg2 {[%clk 0:04:37.2]} 0-1

[Event "Live Chess"]
[Site "Chess.com"]
[Date "2023.05.21"]
[Round "-"]
[White "LL220284LL"]
[Black "SupremeTactician"]
[Result "0-1"]
[WhiteElo "2272"]
[BlackElo "2224"]
[TimeControl "300"]
[EndTime "7:04:28 PDT"]
[Termination "SupremeTactician won by resignation"]

1. Nf3 {[%clk 0:04:59.1]} 1... Nf6 {[%clk 0:04:58]} 2. b3 {[%clk 0:04:58.5]}
2... e6 {[%clk 0:04:57.7]} 3. Bb2 {[%clk 0:04:58.4]} 3... d5 {[%clk 0:04:56.6]}
4. e3 {[%clk 0:04:58.3]} 4... Be7 {[%clk 0:04:55.5]} 5. d4 {[%clk 0:04:56.6]}
5... O-O {[%clk 0:04:55.1]} 6. Bd3 {[%clk 0:04:53.1]} 6... b6 {[%clk 0:04:47.4]}
7. O-O {[%clk 0:04:52.4]} 7... a6 {[%clk 0:04:46.5]} 8. Nbd2 {[%clk 0:04:51.5]}
8... Bb7 {[%clk 0:04:45.5]} 9. Qe2 {[%clk 0:04:51.2]} 9... Nbd7 {[%clk
0:04:44.2]} 10. Rad1 {[%clk 0:04:50.5]} 10... c5 {[%clk 0:04:42.9]} 11. e4
{[%clk 0:04:46.2]} 11... dxe4 {[%clk 0:04:40.3]} 12. Nxe4 {[%clk 0:04:45.4]}
12... Nxe4 {[%clk 0:04:38.8]} 13. Bxe4 {[%clk 0:04:45.3]} 13... Bxe4 {[%clk
0:04:36.7]} 14. Qxe4 {[%clk 0:04:45.2]} 14... Nf6 {[%clk 0:04:35.4]} 15. Qh4
{[%clk 0:04:39.2]} 15... Qc7 {[%clk 0:04:30.4]} 16. dxc5 {[%clk 0:04:35.5]}
16... Qxc5 {[%clk 0:04:28.8]} 17. c4 {[%clk 0:04:33.8]} 17... Rad8 {[%clk
0:04:22.7]} 18. Qf4 {[%clk 0:04:25.8]} 18... Bd6 {[%clk 0:04:15]} 19. Qg5 {[%clk
0:04:20.3]} 19... Qxg5 {[%clk 0:04:10.4]} 20. Nxg5 {[%clk 0:04:05.3]} 20... Bf4
{[%clk 0:04:08.2]} 21. Nf3 {[%clk 0:03:59.3]} 21... Ne4 {[%clk 0:04:05]} 22. g3
{[%clk 0:03:57.6]} 22... Bc7 {[%clk 0:04:01.1]} 23. Rfe1 {[%clk 0:03:53.4]}
23... Nc5 {[%clk 0:03:58.4]} 24. Ne5 {[%clk 0:03:51.2]} 24... Bxe5 {[%clk
0:03:55.8]} 25. Rxd8 {[%clk 0:03:46.6]} 25... Rxd8 {[%clk 0:03:52.7]} 26. Bxe5
{[%clk 0:03:46.1]} 26... Nd3 {[%clk 0:03:51.7]} 27. Rd1 {[%clk 0:03:45.2]} 27...
Rd7 {[%clk 0:03:44.8]} 28. Bc3 {[%clk 0:03:38.3]} 28... f6 {[%clk 0:03:42.8]}
29. Kf1 {[%clk 0:03:37.1]} 29... Kf7 {[%clk 0:03:40.2]} 30. Ke2 {[%clk
0:03:36.5]} 30... Nc5 {[%clk 0:03:36.9]} 31. Rxd7+ {[%clk 0:03:33.8]} 31... Nxd7
{[%clk 0:03:36.8]} 32. Kd3 {[%clk 0:03:32.5]} 32... e5 {[%clk 0:03:35.7]} 33.
Bd2 {[%clk 0:03:29.3]} 33... Ke6 {[%clk 0:03:33.8]} 34. Be3 {[%clk 0:03:27.9]}
34... Kd6 {[%clk 0:03:33.2]} 35. b4 {[%clk 0:03:26.2]} 35... g6 {[%clk
0:03:30.2]} 36. f4 {[%clk 0:03:25.1]} 36... f5 {[%clk 0:03:27.5]} 37. fxe5+
{[%clk 0:03:22.8]} 37... Nxe5+ {[%clk 0:03:26.5]} 38. Kc3 {[%clk 0:03:21.3]}
38... Kc6 {[%clk 0:03:20.8]} 39. a4 {[%clk 0:03:18.6]} 39... Ng4 {[%clk
0:03:19.4]} 40. b5+ {[%clk 0:03:17.1]} 40... axb5 {[%clk 0:03:17.4]} 41. axb5+
{[%clk 0:03:16]} 41... Kc7 {[%clk 0:03:15.8]} 42. h3 {[%clk 0:03:15.4]} 42...
Nxe3 {[%clk 0:03:14.5]} 0-1

[Event "Live Chess"]
[Site "Chess.com"]
[Date "2023.05.21"]
[Round "-"]
[White "ameetghasi100"]
[Black "Mugzwang"]
[Result "1-0"]
[WhiteElo "2583"]
[BlackElo "1477"]
[TimeControl "300"]
[EndTime "7:04:28 PDT"]
[Termination "ameetghasi100 won by checkmate"]

1. d4 {[%clk 0:04:57.7]} 1... d5 {[%clk 0:04:57.4]} 2. Nc3 {[%clk 0:04:57.6]}
2... Nf6 {[%clk 0:04:55.2]} 3. Nf3 {[%clk 0:04:57.5]} 3... c5 {[%clk 0:04:46.7]}
4. Bg5 {[%clk 0:04:57.4]} 4... e6 {[%clk 0:04:38.7]} 5. e4 {[%clk 0:04:55.3]}
5... cxd4 {[%clk 0:04:33.5]} 6. Qxd4 {[%clk 0:04:51.9]} 6... Nc6 {[%clk
0:04:25.6]} 7. Bb5 {[%clk 0:04:49.3]} 7... Be7 {[%clk 0:04:22.1]} 8. exd5 {[%clk
0:04:43.2]} 8... Nxd5 {[%clk 0:04:04.8]} 9. Nxd5 {[%clk 0:04:37.9]} 9... exd5
{[%clk 0:03:47]} 10. Qxg7 {[%clk 0:04:34.9]} 10... Rf8 {[%clk 0:03:33.9]} 11.
O-O-O {[%clk 0:04:32.1]} 11... Bg4 {[%clk 0:02:55.8]} 12. Rhe1 {[%clk
0:04:28.8]} 12... Qb6 {[%clk 0:02:28.6]} 13. Bxc6+ {[%clk 0:04:28.7]} 13... Qxc6
{[%clk 0:02:11.5]} 14. Rxe7+ {[%clk 0:04:28.6]} 14... Kd8 {[%clk 0:02:08.9]} 15.
Qxf8+ {[%clk 0:04:28.5]} 15... Qe8 {[%clk 0:02:04]} 16. Qxe8# {[%clk 0:04:28.4]}
1-0

[Event "Live Chess"]
[Site "Chess.com"]
[Date "2023.05.21"]
[Round "-"]
[White "HonestJoe1"]
[Black "matt1979"]
[Result "1-0"]
[WhiteElo "2092"]
[BlackElo "1552"]
[TimeControl "300"]
[EndTime "7:04:28 PDT"]
[Termination "HonestJoe1 won by resignation"]

1. d4 {[%clk 0:04:59.3]} 1... e6 {[%clk 0:04:57.7]} 2. e4 {[%clk 0:04:57.4]}
2... d5 {[%clk 0:04:55.3]} 3. e5 {[%clk 0:04:56.6]} 3... c5 {[%clk 0:04:53.1]}
4. Qg4 {[%clk 0:04:55.2]} 4... Nc6 {[%clk 0:04:49.8]} 5. Nf3 {[%clk 0:04:53.6]}
5... cxd4 {[%clk 0:04:41.8]} 6. Bd3 {[%clk 0:04:52.4]} 6... Qc7 {[%clk
0:04:32.4]} 7. Qg3 {[%clk 0:04:50.8]} 7... Nxe5 {[%clk 0:04:29.1]} 8. Qxe5
{[%clk 0:04:48.9]} 8... Qxe5+ {[%clk 0:04:25.1]} 9. Nxe5 {[%clk 0:04:47.8]} 9...
Bd6 {[%clk 0:04:22.9]} 10. Bb5+ {[%clk 0:04:43]} 10... Ke7 {[%clk 0:04:18]} 11.
Nd3 {[%clk 0:04:41.1]} 11... e5 {[%clk 0:04:07.4]} 12. O-O {[%clk 0:04:38.9]}
12... e4 {[%clk 0:04:00.2]} 13. Nf4 {[%clk 0:04:35]} 13... Nf6 {[%clk
0:03:53.8]} 14. c4 {[%clk 0:04:30.5]} 14... Be6 {[%clk 0:03:44]} 15. cxd5 {[%clk
0:04:28.1]} 15... Nxd5 {[%clk 0:03:41.6]} 16. Nxe6 {[%clk 0:04:26.3]} 16... Kxe6
{[%clk 0:03:39.2]} 17. Bc4 {[%clk 0:04:24.9]} 17... Rac8 {[%clk 0:03:36.8]} 18.
Bxd5+ {[%clk 0:04:23.8]} 18... Kxd5 {[%clk 0:03:35.5]} 19. Nd2 {[%clk
0:04:19.5]} 19... Rc7 {[%clk 0:03:24.2]} 20. b3 {[%clk 0:04:16.3]} 20... Rhc8
{[%clk 0:03:22.1]} 21. Nc4 {[%clk 0:04:13.7]} 21... Ke6 {[%clk 0:03:19.1]} 22.
Bb2 {[%clk 0:04:09.8]} 22... b5 {[%clk 0:03:07.7]} 23. Nxd6 {[%clk 0:04:08.2]}
23... Kxd6 {[%clk 0:03:06.5]} 24. Bxd4 {[%clk 0:04:07.3]} 1-0

[Event "Live Chess"]
[Site "Chess.com"]
[Date "2023.05.21"]
[Round "-"]
[White "Vitalii18a"]
[Black "WelshTiger"]
[Result "0-1"]
[WhiteElo "1128"]
[BlackElo "2328"]
[TimeControl "300"]
[EndTime "7:04:37 PDT"]
[Termination "WelshTiger won by resignation"]

1. e4 {[%clk 0:04:55.1]} 1... c5 {[%clk 0:04:59.1]} 2. c3 {[%clk 0:04:52]} 2...
Nf6 {[%clk 0:04:56.5]} 3. Bd3 {[%clk 0:04:49.7]} 3... e5 {[%clk 0:04:55.1]} 4.
Bc2 {[%clk 0:04:47.2]} 4... d6 {[%clk 0:04:54.5]} 5. Nf3 {[%clk 0:04:45.9]} 5...
Bg4 {[%clk 0:04:52.8]} 6. h3 {[%clk 0:04:44.4]} 6... Bxf3 {[%clk 0:04:51.7]} 7.
Qxf3 {[%clk 0:04:43.2]} 7... Nc6 {[%clk 0:04:51.6]} 8. d4 {[%clk 0:04:41.6]}
8... cxd4 {[%clk 0:04:50.2]} 9. cxd4 {[%clk 0:04:40.6]} 9... Nxd4 {[%clk
0:04:49.6]} 10. Qd1 {[%clk 0:04:38.1]} 10... Nxc2+ {[%clk 0:04:38.4]} 11. Qxc2
{[%clk 0:04:36.5]} 11... Rc8 {[%clk 0:04:37.9]} 12. Qa4+ {[%clk 0:04:33.5]}
12... Qd7 {[%clk 0:04:36.8]} 13. Qxd7+ {[%clk 0:04:28.6]} 13... Kxd7 {[%clk
0:04:36.7]} 14. Be3 {[%clk 0:04:25.6]} 14... Nxe4 {[%clk 0:04:34.1]} 15. O-O
{[%clk 0:04:22.8]} 15... b6 {[%clk 0:04:32.7]} 16. Nc3 {[%clk 0:04:21.5]} 16...
Nxc3 {[%clk 0:04:31.3]} 17. bxc3 {[%clk 0:04:19.7]} 17... Rxc3 {[%clk
0:04:30.9]} 18. Rfd1 {[%clk 0:04:13.3]} 18... Be7 {[%clk 0:04:29.4]} 19. Rd2
{[%clk 0:04:11.8]} 19... Rhc8 {[%clk 0:04:27.7]} 20. a4 {[%clk 0:04:06]} 20...
Rc1+ {[%clk 0:04:25.8]} 21. Rxc1 {[%clk 0:04:04]} 21... Rxc1+ {[%clk 0:04:25.7]}
22. Kh2 {[%clk 0:04:02.3]} 22... Ra1 {[%clk 0:04:25.2]} 23. f4 {[%clk
0:03:50.8]} 23... exf4 {[%clk 0:04:21.2]} 24. Bxf4 {[%clk 0:03:49.6]} 24... Rxa4
{[%clk 0:04:20.8]} 25. Bg3 {[%clk 0:03:44.3]} 25... h5 {[%clk 0:04:19.5]} 26.
Rf2 {[%clk 0:03:41.7]} 26... h4 {[%clk 0:04:17.7]} 27. Bf4 {[%clk 0:03:34.5]}
27... Bf6 {[%clk 0:04:17]} 28. Be3 {[%clk 0:03:23]} 28... Be5+ {[%clk
0:04:14.6]} 29. g3 {[%clk 0:03:19.1]} 29... hxg3+ {[%clk 0:04:11.4]} 30. Kg2
{[%clk 0:03:14.1]} 30... gxf2 {[%clk 0:04:11.3]} 0-1

[Event "Live Chess"]
[Site "Chess.com"]
[Date "2023.05.21"]
[Round "-"]
[White "DRS44"]
[Black "Ocelot32"]
[Result "0-1"]
[WhiteElo "1310"]
[BlackElo "1401"]
[TimeControl "300"]
[EndTime "7:04:44 PDT"]
[Termination "Ocelot32 won by resignation"]

1. e4 {[%clk 0:04:47.3]} 1... e6 {[%clk 0:04:58.6]} 2. d4 {[%clk 0:04:44.1]}
2... d5 {[%clk 0:04:57.7]} 3. e5 {[%clk 0:04:41.8]} 3... c5 {[%clk 0:04:56.5]}
4. c3 {[%clk 0:04:39.7]} 4... Nc6 {[%clk 0:04:55.7]} 5. Nf3 {[%clk 0:04:36]}
5... Qb6 {[%clk 0:04:53.9]} 6. Bd3 {[%clk 0:04:32.9]} 6... Bd7 {[%clk
0:04:51.2]} 7. O-O {[%clk 0:04:28.5]} 7... cxd4 {[%clk 0:04:43]} 8. cxd4 {[%clk
0:04:23.8]} 8... Nge7 {[%clk 0:04:39.1]} 9. Bg5 {[%clk 0:04:11.6]} 9... Ng6
{[%clk 0:04:36.7]} 10. Bxg6 {[%clk 0:03:55.9]} 10... hxg6 {[%clk 0:04:35.2]} 11.
Nc3 {[%clk 0:03:55]} 11... Be7 {[%clk 0:04:31.9]} 12. Bxe7 {[%clk 0:03:46.4]}
12... Nxe7 {[%clk 0:04:29.7]} 13. Ng5 {[%clk 0:03:30.3]} 13... Nf5 {[%clk
0:04:22.6]} 14. Qf3 {[%clk 0:03:13.5]} 14... Qd8 {[%clk 0:04:20.2]} 15. g4
{[%clk 0:02:14.5]} 15... Qxg5 {[%clk 0:04:11.8]} 16. Qg3 {[%clk 0:01:43.1]}
16... Nxd4 {[%clk 0:04:02.1]} 17. Rfe1 {[%clk 0:01:10.8]} 17... Nc2 {[%clk
0:03:50.8]} 18. f4 {[%clk 0:01:05]} 18... Qh4 {[%clk 0:03:43.5]} 19. Qg2 {[%clk
0:00:52.7]} 19... Nxe1 {[%clk 0:03:35.2]} 0-1

[Event "Live Chess"]
[Site "Chess.com"]
[Date "2023.05.21"]
[Round "-"]
[White "Inglaterra"]
[Black "martynstanley"]
[Result "1-0"]
[WhiteElo "2050"]
[BlackElo "1016"]
[TimeControl "300"]
[EndTime "7:04:47 PDT"]
[Termination "Inglaterra won by checkmate"]

1. d4 {[%clk 0:04:51]} 1... e6 {[%clk 0:04:59]} 2. e3 {[%clk 0:04:49.9]} 2... d5
{[%clk 0:04:58.2]} 3. Nf3 {[%clk 0:04:48.6]} 3... c5 {[%clk 0:04:57.5]} 4. c3
{[%clk 0:04:46.8]} 4... Nc6 {[%clk 0:04:56.7]} 5. Bd3 {[%clk 0:04:46.3]} 5...
Qb6 {[%clk 0:04:55.9]} 6. O-O {[%clk 0:04:45.4]} 6... Nh6 {[%clk 0:04:55.2]} 7.
Nbd2 {[%clk 0:04:41.7]} 7... Nf5 {[%clk 0:04:54.3]} 8. dxc5 {[%clk 0:04:37.3]}
8... Bxc5 {[%clk 0:04:53]} 9. e4 {[%clk 0:04:36.6]} 9... dxe4 {[%clk 0:04:51.9]}
10. Nxe4 {[%clk 0:04:23.3]} 10... Nfe7 {[%clk 0:04:41.9]} 11. Nxc5 {[%clk
0:04:18.9]} 11... Qxc5 {[%clk 0:04:40.9]} 12. Be3 {[%clk 0:04:17.3]} 12... Qd5
{[%clk 0:04:38.6]} 13. Qc2 {[%clk 0:04:15.3]} 13... b6 {[%clk 0:04:37.1]} 14.
Rfd1 {[%clk 0:04:06.3]} 14... Qd8 {[%clk 0:04:32.8]} 15. Bb5 {[%clk 0:03:58.7]}
15... Qc7 {[%clk 0:04:31.4]} 16. Qe4 {[%clk 0:03:49.4]} 16... Bb7 {[%clk
0:04:29.6]} 17. Bf4 {[%clk 0:03:44]} 17... Qc8 {[%clk 0:04:21.8]} 18. Ne5 {[%clk
0:03:39.1]} 18... f6 {[%clk 0:04:18.8]} 19. Nd7 {[%clk 0:03:33]} 19... f5 {[%clk
0:04:12.6]} 20. Qxe6 {[%clk 0:03:30.6]} 20... a6 {[%clk 0:04:03.1]} 21. Bc4
{[%clk 0:03:16.3]} 21... b5 {[%clk 0:03:59.7]} 22. Qf7+ {[%clk 0:03:13.5]} 22...
Kd8 {[%clk 0:03:58.4]} 23. Nb6+ {[%clk 0:03:11.4]} 23... Nd4 {[%clk 0:03:48.5]}
24. Rxd4+ {[%clk 0:03:10.2]} 24... Nd5 {[%clk 0:03:47]} 25. Nxc8 {[%clk
0:03:05.4]} 25... Kxc8 {[%clk 0:03:43.1]} 26. Bxd5 {[%clk 0:03:02.2]} 26... Rd8
{[%clk 0:03:39.7]} 27. Qc7# {[%clk 0:03:01.2]} 1-0

[Event "Live Chess"]
[Site "Chess.com"]
[Date "2023.05.21"]
[Round "-"]
[White "Doge_Dandolo"]
[Black "LiamClery2020"]
[Result "0-1"]
[WhiteElo "1882"]
[BlackElo "1961"]
[TimeControl "300"]
[EndTime "7:05:09 PDT"]
[Termination "LiamClery2020 won by resignation"]

1. Nf3 {[%clk 0:04:56.8]} 1... Nf6 {[%clk 0:04:59.1]} 2. c4 {[%clk 0:04:55.6]}
2... Nc6 {[%clk 0:04:54.2]} 3. g3 {[%clk 0:04:45.2]} 3... e5 {[%clk 0:04:52.8]}
4. d3 {[%clk 0:04:43.5]} 4... d5 {[%clk 0:04:51.2]} 5. cxd5 {[%clk 0:04:42]}
5... Bb4+ {[%clk 0:04:50.6]} 6. Nbd2 {[%clk 0:04:40.3]} 6... Nxd5 {[%clk
0:04:48.7]} 7. Bg2 {[%clk 0:04:38.1]} 7... O-O {[%clk 0:04:45.1]} 8. a3 {[%clk
0:04:36.7]} 8... Bxd2+ {[%clk 0:04:42.7]} 9. Nxd2 {[%clk 0:04:32.9]} 9... Nd4
{[%clk 0:04:36.9]} 10. b4 {[%clk 0:04:27.9]} 10... Nc3 {[%clk 0:04:35.7]} 11.
Qc2 {[%clk 0:04:20.5]} 11... Nxc2+ {[%clk 0:04:34.5]} 0-1